bitfinex/quotes_SOLUSD_20250402
["timestamp","ask_amount","ask_price","bid_price","bid_amount"]
[1743592306053,12.62883245,126.09,126.08,6.86]
[1743592308853,93.32883245,126.1,126.08,6.86]
[1743592309053,0.03,126.09,126.08,6.86]
[1743592314752,81.2,126.08,126.0,20.0]
[1743592314954,18.64964886,126.04,125.99,228.323]
[1743592315163,80.7,126.03,126.0,6.86]
[1743592315355,12.62883245,126.02,125.99,228.323]
[1743592316361,93.32883245,126.03,125.99,228.323]
[1743592318255,12.62883245,126.02,125.99,228.323]
[1743592318663,80.7,126.01,125.99,228.323]
[1743592322290,80.7,126.01,126.0,6.86]
[1743592325378,80.7,126.01,125.99,228.323]
[1743592325681,93.32883245,126.01,125.99,235.183]
[1743592326790,80.7,126.0,125.99,235.183]
[1743592329784,80.7,126.0,125.99,6.923]
[1743592330088,93.32883245,126.0,125.99,6.923]
[1743592330466,12.62883245,126.0,125.99,6.923]
[1743592332093,12.62883245,126.0,125.99,0.063]
[1743592333500,31.42064288,126.0,125.99,0.063]
[1743592335295,31.27848131,126.0,125.99,0.063]
[1743592335993,80.7,126.02,125.99,20.063]
[1743592336194,80.7,126.06,126.01,20.0]
[1743592336402,80.7,126.06,126.02,6.86]
[1743592340987,80.7,126.06,126.02,235.28]
[1743592347895,80.7,126.06,126.02,236.794]
[1743592348095,80.7,126.08,126.03,20.0]
[1743592351488,79.878,126.08,126.03,20.0]
[1743592355214,79.878,126.08,126.03,20.063]
[1743592355401,79.908,126.08,126.03,20.063]
[1743592365031,79.908,126.08,126.04,228.32]
[1743592369420,92.53683245,126.08,126.04,228.32]
[1743592371037,79.908,126.08,126.04,228.32]
[1743592379443,79.908,126.08,126.03,20.063]
[1743592382036,79.908,126.08,126.04,0.063]
[1743592382233,92.53683245,126.08,126.04,0.063]
[1743592382538,94.08733245,126.08,126.05,6.86]
[1743592385421,81.4585,126.08,126.05,6.86]
[1743592385626,94.08733245,126.08,126.05,6.86]
[1743592386147,79.878,126.07,126.05,6.86]
[1743592390231,92.50683245,126.07,126.05,6.86]
[1743592390849,12.62883245,126.06,126.05,6.86]
[1743592393049,12.62883245,126.06,126.04,0.063]
[1743592393252,12.62883245,126.05,126.04,0.063]
[1743592397557,31.27848131,126.05,126.04,0.063]
[1743592398360,31.42064288,126.05,126.04,0.063]
[1743592406675,31.92064288,126.05,126.04,0.063]
[1743592406875,31.42064288,126.05,126.04,0.063]
[1743592407075,31.92064288,126.05,126.04,0.063]
[1743592410786,31.42064288,126.05,126.04,0.063]
[1743592411088,31.92064288,126.05,126.04,0.063]
[1743592412387,31.42064288,126.05,126.04,0.063]
[1743592412781,31.92064288,126.05,126.04,0.063]
[1743592412978,31.42064288,126.05,126.04,0.063]
[1743592413289,31.92064288,126.05,126.04,0.063]
[1743592413476,31.42064288,126.05,126.04,0.063]
[1743592415585,41.82064288,126.05,126.04,0.063]
[1743592416772,42.32064288,126.05,126.04,0.063]
[1743592421086,41.82064288,126.05,126.04,0.063]
[1743592423295,42.32064288,126.05,126.04,0.063]
[1743592424804,41.82064288,126.05,126.04,0.063]
[1743592426396,42.32064288,126.05,126.04,0.063]
[1743592428198,41.82064288,126.05,126.04,0.063]
[1743592428371,42.32064288,126.05,126.04,0.063]
[1743592429193,41.82064288,126.05,126.04,0.063]
[1743592429695,42.32064288,126.05,126.04,0.063]
[1743592431299,41.82064288,126.05,126.04,0.063]
[1743592431486,42.32064288,126.05,126.04,0.063]
[1743592433099,109.68664886,126.04,126.03,0.063]
[1743592433393,122.31548131,126.04,126.03,0.063]
[1743592438905,41.67848131,126.04,126.03,0.063]
[1743592443205,41.82064288,126.04,126.03,0.063]
[1743592450423,42.32064288,126.04,126.03,0.063]
[1743592450638,18.64964886,126.0,125.99,0.063]
[1743592450795,31.27848131,126.0,125.99,0.063]
[1743592451830,10.3,126.03,125.99,0.063]
[1743592452194,22.92883245,126.03,125.99,0.063]
[1743592454194,12.62883245,126.02,125.99,0.063]
[1743592458823,10.3,126.03,125.99,0.063]
[1743592459123,12.62883245,126.02,125.99,0.063]
[1743592463110,12.62883245,126.01,125.99,0.063]
[1743592463418,12.62883245,126.0,125.99,0.063]
[1743592466626,31.27848131,126.0,125.99,0.063]
[1743592468819,18.64964886,126.0,125.99,0.063]
[1743592469025,12.62883245,126.01,125.99,0.063]
[1743592492745,12.62883245,126.0,125.99,0.063]
[1743592493719,12.62883245,126.01,125.99,0.063]
[1743592495417,31.42064288,126.02,125.99,0.063]
[1743592495630,12.62883245,126.01,125.99,0.063]
[1743592502246,31.27848131,126.02,125.99,0.063]
[1743592502848,18.64964886,126.02,125.99,0.063]
[1743592503650,0.03,126.03,125.99,0.063]
[1743592503949,0.03,126.03,126.02,1.5118]
[1743592504261,0.03,126.03,126.02,14.9851]
[1743592511235,0.03,126.03,126.02,8.1251]
[1743592511452,0.03,126.03,126.02,14.9851]
[1743592513242,0.03,126.03,126.02,15.12726157]
[1743592513842,0.03,126.04,126.03,20.0]
[1743592514037,0.03,126.04,126.03,20.14216157]
[1743592515667,0.03,126.04,126.03,248.50216157]
[1743592517673,0.03,126.04,126.03,267.15181043]
[1743592518468,0.03,126.08,126.06,20.0]
[1743592518672,0.03,126.08,126.07,8.59306157]
[1743592519691,0.03,126.08,126.07,8.4509]
[1743592519852,0.03,126.08,126.07,8.59306157]
[1743592523968,0.03,126.08,126.07,8.4509]
[1743592527865,0.03,126.08,126.07,8.59306157]
[1743592529788,0.03,126.09,126.08,20.0]
[1743592530001,0.03,126.09,126.08,20.14216157]
[1743592530201,0.03,126.12,126.11,20.0]
[1743592530516,0.03,126.12,126.11,26.84]
[1743592531404,0.03,126.12,126.11,255.08]
[1743592537604,0.03,126.12,126.11,255.22216157]
[1743592539911,0.03,126.16,126.14,20.0]
[1743592540113,0.03,126.16,126.15,6.84]
[1743592547219,0.03,126.16,126.15,234.98]
[1743592553518,0.03,126.16,126.15,228.14]
[1743592553714,0.03,126.16,126.15,234.98]
[1743592560536,12.65883245,126.16,126.15,234.98]
[1743592561339,19.17723245,126.16,126.15,228.14]
[1743592561505,37.82688131,126.16,126.15,228.14]
[1743592565421,37.96904288,126.16,126.15,228.14]
[1743592571239,18.64964886,126.15,126.13,6.84]
[1743592571452,12.62883245,126.14,126.13,6.84]
[1743592572731,31.27848131,126.15,126.13,6.84]
[1743592572938,18.64964886,126.15,126.13,6.84]
[1743592573137,31.27848131,126.15,126.13,6.84]
[1743592576830,80.7,126.14,126.13,6.84]
[1743592585551,80.73,126.14,126.13,6.84]
[1743592586055,93.35883245,126.14,126.13,6.84]
[1743592588150,80.73,126.14,126.13,6.84]
[1743592588453,93.35883245,126.14,126.13,6.84]
[1743592588747,80.73,126.14,126.13,6.84]
[1743592595764,0.03,126.14,126.13,6.84]
[1743592599758,0.03,126.14,126.13,6.98216157]
[1743592599938,0.03,126.14,126.13,6.84]
[1743592600539,0.03,126.14,126.13,6.98216157]
[1743592602061,0.03,126.14,126.13,25.63181043]
[1743592603189,0.03,126.14,126.13,114.65111043]
[1743592603399,2.8605601,126.18,126.17,38.79181043]
[1743592603603,2.8605601,126.18,126.17,47.21991043]
[1743592604199,0.03,126.2,126.19,40.0]
[1743592604399,0.03,126.2,126.19,58.79181043]
[1743592604694,0.03,126.2,126.19,40.14216157]
[1743592611009,0.03,126.2,126.19,268.20216157]
[1743592611712,0.03,126.2,126.19,234.9]
[1743592616098,0.03,126.2,126.19,228.06]
[1743592616304,0.03,126.2,126.19,234.9]
[1743592617305,12.65883245,126.2,126.19,234.9]
[1743592618205,14.27963245,126.2,126.19,234.9]
[1743592618521,20.79973245,126.2,126.19,228.06]
[1743592619421,39.44938131,126.2,126.19,228.06]
[1743592619613,18.64964886,126.19,126.18,0.063]
[1743592619919,31.27848131,126.19,126.18,0.063]
[1743592621892,31.42064288,126.19,126.18,0.063]
[1743592622625,31.27848131,126.19,126.18,0.063]
[1743592622802,31.42064288,126.19,126.18,0.063]
[1743592626638,31.27848131,126.19,126.18,0.063]
[1743592627638,8.1709,126.2,126.18,6.903]
[1743592627813,12.62883245,126.19,126.18,6.903]
[1743592631918,31.27848131,126.19,126.18,6.903]
[1743592632113,31.42064288,126.19,126.18,0.063]
[1743592632317,81.93597268,126.19,126.18,0.063]
[1743592632525,31.42064288,126.19,126.18,0.063]
[1743592633114,31.27848131,126.19,126.18,0.063]
[1743592633318,31.42064288,126.19,126.18,0.063]
[1743592634335,31.92064288,126.19,126.18,0.063]
[1743592634520,31.95064288,126.19,126.18,0.063]
[1743592635742,31.45064288,126.19,126.18,0.063]
[1743592639347,0.03,126.19,126.18,0.063]
[1743592639528,12.65883245,126.19,126.18,0.063]
[1743592644555,31.30848131,126.19,126.18,0.063]
[1743592645740,18.67964886,126.19,126.18,0.063]
[1743592645939,31.30848131,126.19,126.18,0.063]
[1743592649672,31.30848131,126.19,126.18,6.903]
[1743592651758,31.45064288,126.19,126.18,6.903]
[1743592652274,31.45064288,126.19,126.18,0.063]
[1743592654173,99.49181043,126.18,126.14,228.16]
[1743592654377,12.62883245,126.15,126.14,228.16]
[1743592654874,31.27848131,126.15,126.12,0.063]
[1743592655058,12.62883245,126.13,126.12,0.063]
[1743592655367,92.23597268,126.13,126.12,0.063]
[1743592656754,12.62883245,126.1,126.09,0.063]
[1743592657259,31.42064288,126.1,126.09,0.063]
[1743592658969,28.94964886,126.13,126.09,0.063]
[1743592659167,12.62883245,126.11,126.09,0.063]
[1743592660071,12.62883245,126.1,126.09,0.063]
[1743592660382,93.32883245,126.1,126.09,0.063]
[1743592666782,112.12064288,126.1,126.09,0.063]
[1743592670557,31.42064288,126.1,126.09,0.063]
[1743592680667,0.14216157,126.06,126.05,0.063]
[1743592680874,31.42064288,126.06,126.05,0.063]
[1743592682179,81.93597268,126.06,126.05,0.063]
[1743592683770,31.42064288,126.06,126.05,0.063]
[1743592684792,81.93597268,126.06,126.05,0.063]
[1743592696309,18.79181043,126.06,126.05,0.063]
[1743592696512,31.27848131,126.06,126.05,0.063]
[1743592701211,18.64964886,126.06,126.05,0.063]
[1743592701387,10.3,126.09,126.05,6.903]
[1743592701593,12.62883245,126.11,126.05,6.903]
[1743592701909,18.64964886,126.1,126.05,6.903]
[1743592703113,0.03,126.09,126.05,6.903]
[1743592710623,0.03,126.09,126.07,1.511]
[1743592710922,0.03,126.09,126.07,7.5611]
[1743592711225,0.03,126.09,126.08,20.0]
[1743592711799,0.03,126.12,126.1,20.0]
[1743592711998,0.03,126.12,126.11,6.84]
[1743592722246,0.03,126.12,126.11,13.57536157]
[1743592722437,80.73,126.19,126.13,20.0]
[1743592723465,80.73,126.19,126.12,1.5728]
[1743592723466,80.73,126.19,126.15,20.0]
[1743592723627,80.73,126.19,126.16,6.84]
[1743592723828,0.03,126.19,126.16,6.84]
[1743592724647,0.03,126.19,126.17,21.5583]
[1743592727658,0.03,126.19,126.18,228.16]
[1743592732130,0.03,126.19,126.18,234.98]
[1743592734641,0.03,126.19,126.18,235.12216157]
[1743592740073,0.03,126.19,126.18,243.04726157]
[1743592740448,0.03,126.19,126.18,235.12216157]
[1743592741571,0.03,126.19,126.18,243.04726157]
[1743592742669,0.03,126.19,126.18,235.12216157]
[1743592750877,0.03,126.19,126.18,234.98]
[1743592751870,0.03,126.19,126.18,235.12216157]
[1743592752073,0.03,126.19,126.18,243.04726157]
[1743592753073,0.03,126.19,126.18,235.12216157]
[1743592757282,0.03,126.19,126.18,234.98]
[1743592757975,0.03,126.19,126.18,228.16]
[1743592758284,0.03,126.19,126.18,234.98]
[1743592771669,0.03,126.19,126.18,228.16]
[1743592771876,12.65883245,126.19,126.18,234.98]
[1743592772210,0.03,126.19,126.14,321.4840218]
[1743592773225,0.03,126.19,126.14,240.5840218]
[1743592773396,0.03,126.19,126.15,6.82]
[1743592773397,27.7658,126.19,126.15,6.82]
[1743592773796,27.7658,126.19,126.14,240.5840218]
[1743592773797,27.7658,126.19,126.16,6.82]
[1743592776712,27.7658,126.19,126.14,240.5840218]
[1743592776912,27.7658,126.19,126.17,6.82]
[1743592779814,27.7658,126.19,126.14,240.5840218]
[1743592780015,80.01733245,126.19,126.14,240.5840218]
[1743592780593,12.62883245,126.17,126.14,228.06]
[1743592781902,27.7403,126.17,126.14,228.06]
[1743592782601,27.7403,126.17,126.15,6.82]
[1743592783394,40.36913245,126.17,126.15,6.82]
[1743592783793,40.36913245,126.17,126.14,228.06]
[1743592785517,40.36913245,126.17,126.15,6.82]
[1743592789821,27.7403,126.17,126.15,6.82]
[1743592796437,27.7703,126.17,126.15,6.82]
[1743592798631,19.8445,126.17,126.15,6.82]
[1743592800138,32.47333245,126.17,126.12,228.203]
[1743592800337,12.62883245,126.16,126.12,228.203]
[1743592800829,27.7446,126.15,126.12,228.203]
[1743592801219,27.7446,126.15,126.12,0.063]
[1743592801425,27.7446,126.15,126.13,6.82]
[1743592802843,19.8176,126.15,126.13,6.82]
[1743592803931,7.9264,126.16,126.13,6.82]
[1743592804936,7.9558,126.17,126.13,6.82]
[1743592805316,32.44493245,126.16,126.14,6.82]
[1743592805729,12.62883245,126.15,126.14,6.82]
[1743592806341,12.62883245,126.15,126.12,0.063]
[1743592806526,12.62883245,126.15,126.13,6.82]
[1743592807443,7.9276,126.14,126.12,0.063]
[1743592807736,7.9276,126.14,126.13,6.82]
[1743592809949,7.9276,126.14,126.12,0.063]
[1743592810242,7.9276,126.14,126.13,6.82]
[1743592811942,7.927,126.15,126.13,6.82]
[1743592813748,27.7446,126.15,126.12,228.223]
[1743592813948,19.8176,126.15,126.13,6.82]
[1743592817326,32.44643245,126.15,126.13,6.82]
[1743592817732,32.44643245,126.15,126.06,9.72256157]
[1743592817733,18.64964886,126.1,126.06,6.82]
[1743592817932,12.62883245,126.09,126.06,6.82]
[1743592818142,7.9314,126.08,126.06,6.82]
[1743592820056,7.9314,126.08,126.06,26.82]
[1743592820255,19.8265,126.1,126.06,26.82]
[1743592824761,27.7567,126.1,126.06,26.82]
[1743592826657,27.7567,126.1,126.06,6.82]
[1743592826964,27.7567,126.1,126.06,26.82]
[1743592827864,27.7567,126.1,126.06,6.82]
[1743592828065,40.38553245,126.1,126.06,6.82]
[1743592828273,12.62883245,126.09,126.06,6.82]
[1743592829170,7.9314,126.08,126.06,6.82]
[1743592831277,7.9308,126.09,126.06,6.82]
[1743592833278,27.7567,126.1,126.06,6.883]
[1743592835383,27.7567,126.1,126.06,26.883]
[1743592836688,27.7567,126.1,126.07,228.26]
[1743592843182,40.38553245,126.1,126.07,228.26]
[1743592844089,27.7567,126.1,126.07,228.26]
[1743592844886,7.9302,126.1,126.07,228.26]
[1743592845187,7.9295,126.11,126.07,228.26]
[1743592845494,1.6198,126.13,126.08,20.0]
[1743592845495,0.03,126.1,126.08,20.0]
[1743592845990,0.03,126.1,126.09,0.14216157]
[1743592846160,0.03,126.1,126.09,81.04216157]
[1743592847789,0.03,126.1,126.09,88.97296157]
[1743592848893,0.03,126.1,126.09,81.04216157]
[1743592849093,0.03,126.1,126.09,88.97296157]
[1743592855282,0.03,126.1,126.09,81.04216157]
[1743592855487,0.03,126.1,126.09,80.9]
[1743592855681,0.03,126.1,126.07,228.26]
[1743592855882,0.03,126.1,126.08,6.82]
[1743592856871,0.03,126.1,126.09,0.063]
[1743592857286,7.9602,126.1,126.09,0.063]
[1743592857483,22.21863245,126.1,126.09,0.063]
[1743592857693,22.21863245,126.1,126.09,6.883]
[1743592863005,9.5898,126.1,126.09,6.883]
[1743592863307,7.9602,126.1,126.09,6.883]
[1743592869205,39.23868131,126.1,126.09,0.063]
[1743592869411,39.23868131,126.1,126.09,0.0001]
[1743592872387,20.58903245,126.1,126.09,0.0001]
[1743592872906,7.9602,126.1,126.09,0.0001]
[1743592873287,0.03,126.1,126.09,20.0001]
[1743592876990,0.03,126.1,126.09,27.9309]
[1743592878600,0.03,126.1,126.09,28.07306157]
[1743592880501,0.03,126.1,126.09,108.97306157]
[1743592883423,0.03,126.1,126.09,127.62271043]
[1743592883729,0.03,126.15,126.14,0.14216157]
[1743592883897,0.03,126.15,126.14,87.86216157]
[1743592885130,0.03,126.15,126.14,89.38186157]
[1743592885530,0.03,126.15,126.14,97.30946157]
[1743592891420,0.03,126.15,126.14,87.86216157]
[1743592891620,0.03,126.15,126.13,27.928]
[1743592891621,0.03,126.15,126.13,20.0]
[1743592891916,0.03,126.15,126.14,6.82]
[1743592893741,7.957,126.15,126.14,6.82]
[1743592895147,0.03,126.15,126.14,6.82]
[1743592897342,0.03,126.15,126.13,80.9]
[1743592897543,0.03,126.15,126.14,6.82]
[1743592913168,0.03,126.15,126.13,248.14]
[1743592913359,0.03,126.15,126.14,6.82]
[1743592926895,7.957,126.15,126.14,6.82]
[1743592927991,7.957,126.15,126.13,309.04]
[1743592928305,7.957,126.15,126.14,6.82]
[1743592930783,0.03,126.15,126.14,6.82]
[1743592932510,0.03,126.15,126.13,228.14]
[1743592932690,0.03,126.15,126.14,6.82]
[1743592951241,7.957,126.15,126.14,6.82]
[1743592951427,18.64964886,126.14,126.1,0.063]
[1743592951589,12.62883245,126.11,126.1,0.063]
[1743592951794,18.64964886,126.1,126.09,0.0001]
[1743592951993,31.27848131,126.1,126.09,0.0001]
[1743592952290,31.27848131,126.1,126.06,0.063]
[1743592952497,12.62883245,126.08,126.07,6.82]
[1743592953430,20.56023245,126.08,126.07,6.82]
[1743592955511,39.20988131,126.08,126.07,6.82]
[1743592956928,20.56023245,126.08,126.07,6.82]
[1743592958026,7.9314,126.08,126.07,6.82]
[1743592958206,7.9295,126.11,126.07,6.82]
[1743592958402,9.497,126.12,126.07,14.752]
[1743592958612,7.9291,126.12,126.08,20.0]
[1743592959425,20.55793245,126.12,126.08,20.0]
[1743592959702,46.39694886,126.14,126.08,20.0]
[1743592960029,12.62883245,126.13,126.08,20.0]
[1743592960803,7.9289,126.12,126.08,20.0]
[1743592963837,12.62883245,126.11,126.07,87.72]
[1743592964137,12.62883245,126.09,126.08,6.82]
[1743592965736,39.20928131,126.09,126.08,6.82]
[1743592966638,59.17854288,126.09,126.06,0.063]
[1743592966817,31.27848131,126.07,126.06,0.063]
[1743592967831,39.21058131,126.07,126.06,6.883]
[1743592969236,20.56093245,126.07,126.06,6.883]
[1743592969446,7.9321,126.07,126.06,6.883]
[1743592971741,20.56093245,126.07,126.06,6.883]
[1743592973242,7.9321,126.07,126.06,6.883]
[1743592973441,6.5487,126.1,126.06,6.883]
[1743592973442,12.62883245,126.1,126.06,6.883]
[1743592973627,7.9302,126.1,126.06,26.883]
[1743592978552,7.9302,126.1,126.06,107.783]
[1743592981752,12.62883245,126.11,126.06,6.883]
[1743592983955,7.9302,126.1,126.06,6.883]
[1743592985332,7.9298,126.11,126.07,20.0]
[1743592987141,7.9598,126.11,126.07,20.0]
[1743592987341,7.9598,126.11,126.07,100.9]
[1743592989954,0.03,126.11,126.09,20.0]
[1743592990127,0.03,126.11,126.1,6.82]
[1743592990646,0.03,126.11,126.1,235.08]
[1743592993160,0.03,126.11,126.1,315.98]
[1743592993537,0.03,126.11,126.1,309.16]
[1743592993777,0.03,126.11,126.1,235.08]
[1743592995438,7.9595,126.11,126.1,6.82]
[1743592999574,0.03,126.11,126.1,6.82]
[1743593004171,12.65883245,126.11,126.1,6.82]
[1743593006077,20.58833245,126.11,126.1,6.82]
[1743593011455,18.64964886,126.1,126.06,228.303]
[1743593011685,20.15584886,126.1,126.07,6.82]
[1743593011868,12.62883245,126.08,126.07,6.82]
[1743593012483,20.56023245,126.08,126.07,6.82]
[1743593013284,7.9308,126.09,126.07,6.82]
[1743593013782,7.9305,126.1,126.07,26.82]
[1743593014774,7.9305,126.1,126.07,6.82]
[1743593016279,40.38483245,126.1,126.07,6.82]
[1743593016663,27.756,126.1,126.07,6.82]
[1743593020479,7.9305,126.1,126.07,6.82]
[1743593020879,27.7834,126.11,126.07,6.82]
[1743593021081,12.62883245,126.1,126.07,6.82]
[1743593021961,12.62883245,126.09,126.07,6.82]
[1743593022970,7.9314,126.08,126.07,6.82]
[1743593023802,20.56023245,126.08,126.07,6.84]
[1743593024886,7.9308,126.09,126.07,6.84]
[1743593025069,0.03,126.1,126.07,6.84]
[1743593029480,12.65883245,126.1,126.07,6.84]
[1743593029869,20.55963245,126.09,126.07,6.84]
[1743593032994,40.38673245,126.09,126.08,6.84]
[1743593035707,59.03638131,126.09,126.08,6.84]
[1743593035887,18.64964886,126.08,126.06,228.303]
[1743593036205,12.62883245,126.07,126.06,228.303]
[1743593036402,20.56093245,126.07,126.06,228.303]
[1743593036805,7.9321,126.07,126.06,228.303]
[1743593037108,7.9321,126.07,126.06,235.163]
[1743593038403,7.9314,126.08,126.06,235.163]
[1743593038602,7.9314,126.08,126.06,6.923]
[1743593039988,20.56023245,126.08,126.06,6.923]
[1743593042389,12.62883245,126.07,126.06,0.063]
[1743593042606,20.56023245,126.08,126.06,6.923]
[1743593045309,7.9314,126.08,126.06,6.923]
[1743593045608,12.62883245,126.07,126.06,6.923]
[1743593045804,20.56023245,126.08,126.06,6.923]
[1743593056902,7.9314,126.08,126.06,6.923]
[1743593057105,20.56023245,126.08,126.06,6.923]
[1743593059827,7.9314,126.08,126.06,6.923]
[1743593060128,20.56023245,126.08,126.06,6.923]
[1743593064923,7.9314,126.08,126.06,6.923]
[1743593073348,20.56023245,126.08,126.06,6.923]
[1743593078333,12.62883245,126.07,126.06,6.923]
[1743593079560,20.56093245,126.07,126.06,6.923]
[1743593080132,7.9321,126.07,126.06,6.923]
[1743593083459,20.56093245,126.07,126.06,6.923]
[1743593083660,39.21058131,126.07,126.06,6.923]
[1743593084633,39.21058131,126.07,126.06,6.883]
[1743593085059,39.21058131,126.07,126.06,0.063]
[1743593085261,39.21058131,126.07,126.06,6.883]
[1743593087244,18.64964886,126.06,126.03,0.063]
[1743593087450,12.62883245,126.05,126.03,0.063]
[1743593088460,31.27848131,126.05,126.04,6.82]
[1743593089143,39.21178131,126.05,126.04,6.82]
[1743593089466,39.21178131,126.05,126.03,0.063]
[1743593089766,39.21178131,126.05,126.04,6.82]
[1743593089968,26.58294886,126.05,126.04,6.82]
[1743593091337,39.21178131,126.05,126.04,6.82]
[1743593092037,26.58294886,126.05,126.04,6.82]
[1743593092233,39.21178131,126.05,126.04,6.82]
[1743593098474,7.9333,126.05,126.04,6.82]
[1743593110080,20.56213245,126.05,126.04,6.82]
[1743593110379,39.21178131,126.05,126.04,6.82]
[1743593112465,39.21178131,126.05,126.03,6.883]
[1743593112780,20.56213245,126.05,126.03,6.883]
[1743593113896,20.59213245,126.05,126.03,6.883]
[1743593116583,20.59213245,126.05,126.04,6.82]
[1743593117679,20.59213245,126.05,126.03,0.063]
[1743593118895,20.59213245,126.05,126.04,6.82]
[1743593119191,20.59213245,126.05,126.03,0.063]
[1743593119362,12.62883245,126.04,126.03,0.063]
[1743593120489,12.62883245,126.04,126.03,6.883]
[1743593121291,20.56273245,126.04,126.03,6.883]
[1743593124593,20.56273245,126.04,126.03,0.0001]
[1743593124771,20.56273245,126.04,126.03,6.8201]
[1743593125377,40.39763245,126.04,125.99,309.323]
[1743593125692,12.62883245,126.02,125.99,309.323]
[1743593126693,7.9358,126.01,126.0,6.82]
[1743593132106,7.9358,126.01,125.99,228.423]
[1743593132407,7.9358,126.01,126.0,6.82]
[1743593135607,7.9352,126.02,126.0,6.82]
[1743593137202,7.9352,126.02,126.0,6.883]
[1743593139287,0.03,126.05,126.01,20.0]
[1743593139490,0.03,126.05,126.01,102.4419]
[1743593139895,0.03,126.05,126.01,110.3777]
[1743593140714,0.03,126.05,126.01,102.4419]
[1743593147099,0.03,126.05,126.02,228.36]
[1743593149229,0.03,126.05,126.03,20.0]
[1743593149417,0.03,126.05,126.04,6.82]
[1743593166241,0.03,126.05,126.03,228.32]
[1743593166543,0.03,126.05,126.04,6.82]
[1743593168552,7.9633,126.05,126.04,6.82]
[1743593170250,0.03,126.05,126.04,6.82]
[1743593173754,12.65883245,126.05,126.03,228.32]
[1743593173972,31.27848131,126.04,126.02,0.063]
[1743593174130,12.62883245,126.03,126.02,0.063]
[1743593174834,31.27848131,126.04,126.02,0.063]
[1743593175033,7.9346,126.03,126.02,0.063]
[1743593175334,7.9346,126.03,126.02,6.883]
[1743593177853,7.9339,126.04,126.02,6.883]
[1743593185362,18.64964886,126.03,126.0,0.063]
[1743593185659,12.62883245,126.02,126.0,0.063]
[1743593186645,31.27848131,126.02,126.01,6.82]
[1743593187443,39.21368131,126.02,126.01,6.82]
[1743593196153,39.21368131,126.02,126.0,0.063]
[1743593196352,20.56463245,126.01,126.0,6.883]
[1743593197081,20.56463245,126.01,126.0,0.063]
[1743593197270,20.56463245,126.01,126.0,6.883]
[1743593197677,39.21428131,126.01,126.0,6.883]
[1743593198981,39.21428131,126.01,125.99,228.403]
[1743593199275,31.27848131,126.0,125.99,228.403]
[1743593200086,39.21498131,126.0,125.99,228.403]
[1743593200461,39.21498131,126.0,125.99,0.063]
[1743593200666,7.9365,126.0,125.99,0.063]
[1743593204196,7.9655,126.02,125.99,0.063]
[1743593204688,0.03,126.02,125.99,20.063]
[1743593205264,0.03,126.02,126.0,228.44]
[1743593209592,7.9652,126.02,126.0,228.503]
[1743593212074,20.59403245,126.02,126.0,228.503]
[1743593212474,7.9652,126.02,126.0,228.503]